Cogmind - Beta 15 @@@ ROGUE MODE // 2025.10.21 @ 07:10:22 // Winter2019/RPGLIKE Player: War__Prophet Result: Destroyed self via exploding Nuclear Reactor Performance ------------- Evolutions (4) 2000 Regions Visited (8) 1600 Robots Destroyed (46) 230 Value Destroyed (1240) 1240 Prototype IDs (0) 0 Alien Tech Used (0) 0 Bonus (808) 808 TOTAL SCORE: 5878 Bonus ------- Follower Combat Kills 108 Entered Garrisons 200 Entered DSFs 500 Cogmind --------- Core Integrity 0/2150 Matter 218/300 Energy 265/265 System Corruption 0% Temperature Cool (0) Movement Flying (115) Ox1 Location -6/Factory Parts ------- > --- POWER (1) -------- Improved Ion Engine > --- PROPULSION (3) --- Cesium-ion Thruster > --- UTILITY (1) ------ Improved Heat Sink > --- WEAPON (1) ------- Coil Gun > --- INVENTORY (0) ---- (None) Peak State ------------ > --- POWER ------------ Improved Ion Engine > --- PROPULSION ------- Armored Huge Wheel > --- UTILITY ---------- Improved Signal Interpreter > --- WEAPON ----------- Ripper > --- INVENTORY -------- (None) [Rating: 17] Favorites ----------- Power Improved Ion Engine Engine Improved Ion Engine Power Core Light Nuclear Core Propulsion Cesium-ion Thruster Leg Improved Aluminum Leg Wheel Armored Huge Wheel Flight Unit Cesium-ion Thruster Utility Improved Signal Interpreter Device Improved Heat Sink Processor Improved Signal Interpreter Weapon Ripper Ballistic Gun Coil Gun Slashing Weapon Ripper Build | -11 -10 -10 -9 -8 -7 -7 -7 -6 ------- Run | Yrd Mat Min Mat Mat Fac DSF Gar Fac Slots Evolved 2 | . . . . 1 . 1 . . Power . | . . . . . . . . . Propulsion 2 | . . . . 1 . 1 . . Utility . | . . . . . . . . . Weapon . | . . . . . . . . . Parts Attached 15 | . . 3 3 4 . 3 . 2 Power 3 | . . 2 . 1 . . . . Engine 2 | . . 1 . 1 . . . . Core 1 | . . 1 . . . . . . Reactor . | . . . . . . . . . Propulsion 7 | . . . 1 3 . 3 . . Treads . | . . . . . . . . . Leg 1 | . . . . 1 . . . . Wheel 1 | . . . . 1 . . . . Hover . | . . . . . . . . . Flight 5 | . . . 1 1 . 3 . . Utility 3 | . . . 2 . . . . 1 Device 1 | . . . . . . . . 1 Storage . | . . . . . . . . . Processor 2 | . . . 2 . . . . . Hackware . | . . . . . . . . . Protection . | . . . . . . . . . Artifact . | . . . . . . . . . Weapon 2 | . . 1 . . . . . 1 Energy Gun . | . . . . . . . . . Energy Cannon . | . . . . . . . . . Ballistic Gun 1 | . . . . . . . . 1 Ballistic Cannon . | . . . . . . . . . Launcher . | . . . . . . . . . Special Weapon . | . . . . . . . . . Impact Weapon . | . . . . . . . . . Slashing Weapon 1 | . . 1 . . . . . . Piercing Weapon . | . . . . . . . . . Special Melee Weapon . | . . . . . . . . . Unidentified Prototypes . | . . . . . . . . . Parts Lost 4 | . . . 1 1 . . . 2 Power 1 | . . . 1 . . . . . Propulsion 3 | . . . . 1 . . . 2 Utility . | . . . . . . . . . Weapon . | . . . . . . . . . Highest Loss Streak 1 | . . . 1 1 . . . 1 To Critical Strikes . | . . . . . . . . . Average Backups . | . . . . . . . . . Power . | . . . . . . . . . Propulsion . | . . . . . . . . . Utility . | . . . . . . . . . Weapon . | . . . . . . . . . Tool/Special . | . . . . . . . . . Unused Backups . | . . . . . . . . . Power . | . . . . . . . . . Propulsion . | . . . . . . . . . Utility . | . . . . . . . . . Weapon . | . . . . . . . . . Tool/Special . | . . . . . . . . . Average Slot Usage (%) 61 | . . 44 63 65 80 73 83 76 Engine 9 | . . 1 21 2 20 19 16 16 Core 4 | . . 20 . . . . . . Wheel 1 | . . . . . 20 17 . . Flight 10 | . . . . 10 . 4 50 41 Processor 14 | . . . 16 25 20 19 16 2 Slashing Weapon 18 | . . 22 25 25 20 12 . . Peak Build Rating 17 | . . 7 8 17 17 17 14 16 Average Rating 8 | . . 6 6 7 17 14 14 13 On Entrance 8 | . . . 5 8 17 17 14 14 Naked Turns 45 | . 36 9 . . . . . . Heaviest Build 13 | . . 8 8 10 10 10 7 13 Greatest Support 33 | 3 3 8 9 33 33 33 20 20 Greatest Overweight (x) 1 | . . . . 1 . . . . Average Overweight (x) . | . . . . . . . . . Largest Inventory Capacity . | . . . . . . . . . Average Capacity . | . . . . . . . . . Most Carried . | . . . . . . . . . Average Carried . | . . . . . . . . . Final Capacity . | . . . . . . . . . Final Carried . | . . . . . . . . . Class Distribution -------------------- 86% | Mutant 13% | Sprinter Dominant Class ---------------- Mutant | -10/Materials Mutant | -10/Mines Mutant | -9/Materials Mutant | -8/Materials Mutant | -7/Factory Mutant | -7/DSF Sprinter | -7/Garrison Sprinter | -6/Factory Resources | -11 -10 -10 -9 -8 -7 -7 -7 -6 ----------- Run | Yrd Mat Min Mat Mat Fac DSF Gar Fac Matter Collected 316 | 140 60 20 50 40 . 6 . . Remotely . | . . . . . . . . . Salvage Created 1425 | . . 242 360 823 . . . . Parts 102 | . . 21 35 46 . . . . Haulers Intercepted 1 | . . . 1 . . . . . Recyclers Shooed . | . . . . . . . . . Parts Field Recycled . | . . . . . . . . . Retrieved Matter . | . . . . . . . . . Parts Self-Destructed . | . . . . . . . . . Prevented . | . . . . . . . . . Kills | -11 -10 -10 -9 -8 -7 -7 -7 -6 ------- Run | Yrd Mat Min Mat Mat Fac DSF Gar Fac Combat Hostiles Destroyed 28 | . . 6 7 15 . . . . Melee 28 | . . 6 7 15 . . . . Classes Destroyed 11 | . . 5 3 3 . . . . Worker 8 | . . 2 2 4 . . . . Builder 2 | . . 1 . 1 . . . . Tunneler 5 | . . 2 2 1 . . . . Hauler 1 | . . . 1 . . . . . Mechanic 1 | . . . 1 . . . . . Operator 1 | . . . . 1 . . . . Swarmer 5 | . . 2 1 2 . . . . Grunt 14 | . . 4 2 8 . . . . Duelist 1 | . . . . 1 . . . . Sentry 7 | . . . 4 3 . . . . Hunter 1 | . . . . 1 . . . . Best Kill Streak 10 | . . 5 7 10 . . . . Combat Bots Only 4 | . . 2 4 4 . . . . Max Kills in Single Turn 1 | . . 1 1 1 . . . . Gunslinging . | . . . . . . . . . Exploded . | . . . . . . . . . Melee 1 | . . 1 1 1 . . . . Uniques/NPCs Destroyed . | . . . . . . . . . Combat | -11 -10 -10 -9 -8 -7 -7 -7 -6 -------- Run | Yrd Mat Min Mat Mat Fac DSF Gar Fac Hostile Shots Fired 328 | . 21 20 68 81 . 36 81 21 Missed 125 | . 11 8 14 23 . 11 46 12 Hits 203 | . 10 12 54 58 . 25 35 9 Melee 2 | . . . . 2 . . . . Projectile 201 | . 10 12 54 56 . 25 35 9 Critical Strikes 7 | . . 1 1 2 . 3 . . Part Disruptions 1 | . . 1 . . . . . . Damage Taken 3636 | . 89 357 672 890 . 671 385 572 Core 3306 | . 89 315 608 847 . 601 327 519 Absorbed by Shields . | . . . . . . . . . Redirected to Core 1138 | . . 150 214 155 . 243 187 189 Ignored by Resistances 189 | . . . . 2 . 100 66 21 Core Remaining (%) 64 | 100 . 86 52 60 . . 23 . Volleys Fired 7 | . . . . . . . . 7 Largest 1 | . . . . . . . . 1 Hottest 30 | . . . . . . . . 30 Shots Fired 7 | . . . . . . . . 7 Gun 7 | . . . . . . . . 7 Cannon . | . . . . . . . . . Launcher . | . . . . . . . . . Special . | . . . . . . . . . Kinetic 7 | . . . . . . . . 7 Thermal . | . . . . . . . . . Explosive . | . . . . . . . . . Electromagnetic . | . . . . . . . . . Robot Hit Streak . | . . . . . . . . . Robot Miss Streak . | . . . . . . . . . Penetration Max . | . . . . . . . . . Secondary Targets . | . . . . . . . . . Shots Hit Robots 108 | . . 16 38 53 . 1 . . Core Hits 41 | . . 10 10 20 . 1 . . Critical Kills . | . . . . . . . . . Critical Parts Destroyed . | . . . . . . . . . Critical Strikes 10 | . . 1 3 6 . . . . Sever 10 | . . 1 3 6 . . . . Melee Attacks 115 | . . 19 41 54 . 1 . . Impact . | . . . . . . . . . Slashing 115 | . . 19 41 54 . 1 . . Piercing . | . . . . . . . . . Sneak Attacks 19 | . . 5 6 8 . . . . Combat Hostiles . | . . . . . . . . . Follow-up Attacks . | . . . . . . . . . Damage Inflicted 4576 | . . 780 1575 2207 . 14 . . Guns . | . . . . . . . . . Cannons . | . . . . . . . . . Explosions . | . . . . . . . . . Melee 4576 | . . 780 1575 2207 . 14 . . Ramming . | . . . . . . . . . Kinetic . | . . . . . . . . . Thermal . | . . . . . . . . . Explosive . | . . . . . . . . . Electromagnetic . | . . . . . . . . . Impact . | . . . . . . . . . Slashing 4576 | . . 780 1575 2207 . 14 . . Piercing . | . . . . . . . . . Highest Corruption 2 | . . 2 . . . . . . Average Corruption 2 | . . 2 . . . . . . Corruption Purged . | . . . . . . . . . Corruption Blocked . | . . . . . . . . . Effects 2 | . . 2 . . . . . . Energy Discharges 1 | . . 1 . . . . . . Data Loss (minor) 1 | . . 1 . . . . . . Overload Shots . | . . . . . . . . . Overflow Damage 423 | . . 54 186 174 . . . 9 Projectiles . | . . . . . . . . . Explosions 9 | . . . . . . . . 9 Melee 414 | . . 54 186 174 . . . . Knockbacks . | . . . . . . . . . Impact . | . . . . . . . . . Kinetic . | . . . . . . . . . Secondary . | . . . . . . . . . Self-Inflicted Damage 482 | . . 59 . . . . . 423 Shots 7 | . . 1 . . . . . 6 Rammed . | . . . . . . . . . Targets Rammed . | . . . . . . . . . Kicked . | . . . . . . . . . Crushed . | . . . . . . . . . Highest Temperature 14 | . . 4 7 2 . . 14 . Average Temperature 4 | . . 4 7 2 . . 4 . Received Heat Transfer 840 | . . 66 222 387 . 87 48 30 Siege Activations . | . . . . . . . . . Martial Activations . | . . . . . . . . . Shielding Activations . | . . . . . . . . . Robots Disrupted . | . . . . . . . . . Combat Hostiles . | . . . . . . . . . Robots Corrupted . | . . . . . . . . . Combat Hostiles . | . . . . . . . . . Parts Fried . | . . . . . . . . . Impact Corruptions . | . . . . . . . . . Robots Melted . | . . . . . . . . . Combat Hostiles . | . . . . . . . . . Parts Melted 1 | . . 1 . . . . . . Heat Transferred . | . . . . . . . . . Parts Sabotaged . | . . . . . . . . . Parts Stolen . | . . . . . . . . . Parts Stripped . | . . . . . . . . . Power Chain Reactions . | . . . . . . . . . Alert | -11 -10 -10 -9 -8 -7 -7 -7 -6 ------- Run | Yrd Mat Min Mat Mat Fac DSF Gar Fac Maximum Alert Level 1 | . . . 1 1 . . . . Low Security (%) 73 | 100 100 100 61 44 100 100 100 100 Level 1 26 | . . . 38 55 . . . . Level 2 . | . . . . . . . . . Level 3 . | . . . . . . . . . Level 4 . | . . . . . . . . . Level 5 . | . . . . . . . . . High Security . | . . . . . . . . . Max Security . | . . . . . . . . . Peak Influence 387 | . 15 145 276 387 173 121 195 102 Initial 173 | . . 5 52 111 173 121 90 102 Average 147 | . 1 79 154 232 173 121 132 89 Influence Increases 1375 | . 15 240 414 451 . . 125 130 Destroy 0b10 Robot/C 640 | . . 120 220 300 . . . . Destroy 0b10 Robot/NC 90 | . . 25 30 35 . . . . Destroy Leader 172 | . . 30 72 70 . . . . Allied During Kill 42 | . . 13 29 . . . . . Successful Hack 3 | . . . 3 . . . . . Disable Machine 120 | . . . 15 . . . . 105 Anti-Garrison Action 50 | . . . . . . . 50 . Destroy Structure 18 | . . 7 . 1 . . . 10 Partial Spotted 15 | . . . . . . . . 15 Lose Combat Pursuer 225 | . 15 45 45 45 . . 75 . Influence Decreases 1193 | . . 120 283 335 209 52 51 143 Entered New Map 633 | . . 10 83 155 209 52 31 93 Time Decay 440 | . . 110 130 170 . . . 30 Lost Part 40 | . . . 10 10 . . . 20 Lost Ally 80 | . . . 60 . . . 20 . Squads Dispatched 5 | . . . 2 1 . 1 . 1 Investigation 1 | . . . 1 . . . . . Extermination . | . . . . . . . . . Reinforcement 4 | . . . 1 1 . 1 . 1 Assault . | . . . . . . . . . Garrison . | . . . . . . . . . Intercept . | . . . . . . . . . Searches Triggered . | . . . . . . . . . Construction Impeded . | . . . . . . . . . Haulers Reinforced . | . . . . . . . . . Active Scanning Responses . | . . . . . . . . . Cargo Convoy Interrupts . | . . . . . . . . . Stealth | -11 -10 -10 -9 -8 -7 -7 -7 -6 --------- Run | Yrd Mat Min Mat Mat Fac DSF Gar Fac Distress Signals 2 | . 1 . . 1 . . . . Communications Jammed . | . . . . . . . . . Distress Signals . | . . . . . . . . . Times Spotted 77 | . 8 9 15 20 . 5 17 3 Peak Tracking Total 12 | . 7 3 5 5 . 5 12 3 Tactical Retreats 10 | . 1 2 2 3 . . 2 . Traps | -11 -10 -10 -9 -8 -7 -7 -7 -6 ------- Run | Yrd Mat Min Mat Mat Fac DSF Gar Fac Traps Triggered 3 | . . 2 . . . 1 . . Indirectly 1 | . . 1 . . . . . . Trap Hack Attempts . | . . . . . . . . . Triggered . | . . . . . . . . . Disarmed . | . . . . . . . . . Reprogrammed . | . . . . . . . . . Reused . | . . . . . . . . . Traps Extracted . | . . . . . . . . . Installed . | . . . . . . . . . Triggered . | . . . . . . . . . Machines | -11 -10 -10 -9 -8 -7 -7 -7 -6 ---------- Run | Yrd Mat Min Mat Mat Fac DSF Gar Fac Machines Disabled 8 | . . . 1 . . . . 7 Max in Single Turn 7 | . . . 1 . . . . 7 Machines Repaired . | . . . . . . . . . Machines Dismantled . | . . . . . . . . . Machines Sabotaged . | . . . . . . . . . Overloaded Fab Kills . | . . . . . . . . . Hacking | -11 -10 -10 -9 -8 -7 -7 -7 -6 --------- Run | Yrd Mat Min Mat Mat Fac DSF Gar Fac Machines Accessed 4 | . . . 2 . 1 . 1 . Terminals 4 | . . . 2 . 1 . 1 . Fabricators . | . . . . . . . . . Repair Stations . | . . . . . . . . . Recycling Units . | . . . . . . . . . Scanalyzers . | . . . . . . . . . Garrison Access . | . . . . . . . . . Total Hacks 10 | . . . 5 . 1 . 4 . Successful 5 | . . . 3 . 1 . 1 . Failed 5 | . . . 2 . . . 3 . Catastrophic 2 | . . . 1 . . . 1 . Database Lockouts . | . . . . . . . . . Manual 3 | . . . 3 . . . . . Terminals 10 | . . . 5 . 1 . 4 . Fabricators . | . . . . . . . . . Repair Stations . | . . . . . . . . . Recycling Units . | . . . . . . . . . Scanalyzers . | . . . . . . . . . Garrison Access . | . . . . . . . . . Terminal Hacks 5 | . . . 3 . 1 . 1 . Open Door 1 | . . . . . . . 1 . Open DSF 1 | . . . . . 1 . . . Alert Level 2 | . . . 2 . . . . . Maintenance Status 1 | . . . 1 . . . . . Fabricator Hacks . | . . . . . . . . . Repair Station Hacks . | . . . . . . . . . Recycling Unit Hacks . | . . . . . . . . . Scanalyzer . | . . . . . . . . . Garrison Access Hacks . | . . . . . . . . . Unauthorized Hacks . | . . . . . . . . . Terminals . | . . . . . . . . . Fabricators . | . . . . . . . . . Repair Stations . | . . . . . . . . . Recycling Units . | . . . . . . . . . Scanalyzers . | . . . . . . . . . Garrison Access . | . . . . . . . . . Data Cores Recovered . | . . . . . . . . . Used . | . . . . . . . . . Hacking Detections 4 | . . . 2 . 1 . 1 . Full Trace Events 3 | . . . 2 . . . 1 . Feedback Events . | . . . . . . . . . Feedback Blocked . | . . . . . . . . . Robot Schematics Acquired . | . . . . . . . . . Robots Built . | . . . . . . . . . Authchips . | . . . . . . . . . Time . | . . . . . . . . . Total Robot Build Rating . | . . . . . . . . . Part Schematics Acquired . | . . . . . . . . . Parts Built . | . . . . . . . . . Authchips . | . . . . . . . . . Time . | . . . . . . . . . Total Part Build Rating . | . . . . . . . . . Parts Repaired . | . . . . . . . . . Time . | . . . . . . . . . Parts Recycled . | . . . . . . . . . Recycled Matter . | . . . . . . . . . Retrieved Matter . | . . . . . . . . . Retrieved Components . | . . . . . . . . . Parts Scanalyzed . | . . . . . . . . . Part Schematics Acquired . | . . . . . . . . . Parts Damaged . | . . . . . . . . . Bothacking | -11 -10 -10 -9 -8 -7 -7 -7 -6 ------------ Run | Yrd Mat Min Mat Mat Fac DSF Gar Fac Used RIF Installer . | . . . . . . . . . Robots Hacked . | . . . . . . . . . Non-combat . | . . . . . . . . . Combat . | . . . . . . . . . Robot Hacks Applied . | . . . . . . . . . Relay Couplers Released . | . . . . . . . . . Fabnet Peak Effective % . | . . . . . . . . . Robots Rewired . | . . . . . . . . . Allies Hacked . | . . . . . . . . . Hacks Repelled . | . . . . . . . . . Allies | -11 -10 -10 -9 -8 -7 -7 -7 -6 -------- Run | Yrd Mat Min Mat Mat Fac DSF Gar Fac Total Allies 4 | . . 3 . . . . 1 . Largest Group 3 | . . 3 3 . . . 1 . Highest-Rated Group 40 | . . 40 40 . . . 31 . Highest-Rated Ally 31 | . . 16 16 . . . 31 . Total Orders . | . . . . . . . . . Ally Attacks 38 | . . 10 26 . . . 2 . Total Damage 417 | . . 108 266 . . . 43 . Kills 4 | . . . 4 . . . . . Allies Corrupted . | . . . . . . . . . Allies Melted . | . . . . . . . . . Intel | -11 -10 -10 -9 -8 -7 -7 -7 -6 ------- Run | Yrd Mat Min Mat Mat Fac DSF Gar Fac Active Infowar (turns) 80 | . . . 80 . . . . . T.N.C. 80 | . . . 80 . . . . . Robot Analysis Total . | . . . . . . . . . Derelict Logs Recovered 1 | . . 1 . . . . . . Drone Launches . | . . . . . . . . . Drone Recoveries . | . . . . . . . . . Exploration | -11 -10 -10 -9 -8 -7 -7 -7 -6 ------------- Run | Yrd Mat Min Mat Mat Fac DSF Gar Fac Turns Passed 1117 | 14 36 232 263 342 7 68 77 78 Spaces Moved 1467 | 28 71 310 269 266 8 64 255 196 Core 787 | 28 71 310 250 128 . . . . Treads . | . . . . . . . . . Legs 19 | . . . . 19 . . . . Wheels 69 | . . . . 5 8 56 . . Hover . | . . . . . . . . . Flight 592 | . . . 19 114 . 8 255 196 Fastest Speed 29 | 50 50 50 40 40 100 29 29 29 Average Speed 46 | 50 50 50 49 52 100 91 29 30 Slowest Speed 120 | 50 50 50 50 120 100 100 29 32 Overloaded Moves . | . . . . . . . . . Propulsion Burnouts . | . . . . . . . . . Robots Hopped 13 | . . . . . . 1 10 2 Potential Cave-ins . | . . . . . . . . . Cave-ins Triggered . | . . . . . . . . . Exploration Rate (%) 30 | 4 22 62 25 28 . 64 34 8 Regions Visited 8 Branch Regions 1 Pre-discovered Areas . | . . . . . . . . . Known Exits Taken 3 | . . . 1 1 1 . . . Unknown Exits Taken 3 | 1 1 1 . . . . . . Scrap Searched . | . . . . . . . . . Spaces Dug 1 | . . . . 1 . . . . Terrain Destroyed 18 | . . 7 . 1 . . . 10 Melee 1 | . . . . 1 . . . . Projectile . | . . . . . . . . . AOE 17 | . . 7 . . . . . 10 Terrain Rammed . | . . . . . . . . . Walls Destroyed . | . . . . . . . . . Machines Disabled . | . . . . . . . . . Actions | -11 -10 -10 -9 -8 -7 -7 -7 -6 --------- Run | Yrd Mat Min Mat Mat Fac DSF Gar Fac Total 1701 | 27 70 356 336 385 7 68 247 205 Wait 55 | . . 9 3 40 . . 3 . Move 1437 | 27 70 309 268 265 7 61 238 192 Hop 9 | . . . . . . 1 6 2 Pick Up . | . . . . . . . . . Fast Attach 18 | . . 3 4 5 . 4 . 2 Attach . | . . . . . . . . . Detach 2 | . . . 1 . . . . 1 Swap . | . . . . . . . . . Drop 5 | . . 1 1 2 . 1 . . Fire 7 | . . . . . . . . 7 Melee 115 | . . 19 41 54 . 1 . . Ram . | . . . . . . . . . Kick . | . . . . . . . . . Crush . | . . . . . . . . . Escape Stasis . | . . . . . . . . . Rewire . | . . . . . . . . . Trap . | . . . . . . . . . Miscellaneous 53 | . . 15 18 19 . . . 1 Route ------- -11/Scrapyard -10/Materials -10/Mines -9/Materials -8/Materials -7/Factory (discovered 2 exits: Sto / DSF) -7/DSF -7/Garrison -6/Factory History --------- Turn | Location | Event 5 | -11/Scrapyard | Discovered new exit (range 16) 15 | -11/Scrapyard | Entered Materials 46 | -10/Materials | Discovered new exit (range 8) 51 | -10/Materials | Entered Mines 59 | -10/Mines | A weapon hastily lodged in a ceiling crevice suddenly fell to the ground 172 | -10/Mines | Assisted by bots powering up and referring to "LRC-V3" 274 | -10/Mines | Discovered new exit (range 6) 283 | -10/Mines | Entered Materials 283 | -9/Materials | Accompanied by 3 allies 285 | -9/Materials | Reached level 2 313 | -9/Materials | Build established: Mutant 375 | -9/Materials | Reached level 3 484 | -9/Materials | Core integrity fell below 50% 525 | -9/Materials | Lost 3 allies 541 | -9/Materials | Discovered new exit (range 15) 546 | -9/Materials | Identified exit to Materials 546 | -9/Materials | Entered another Materials area 548 | -8/Materials | Reached level 4 565 | -8/Materials | Core integrity fell below 50% 595 | -8/Materials | Reached level 5 680 | -8/Materials | Core integrity fell below 20% 836 | -8/Materials | Reached level 6 857 | -8/Materials | Discovered new exit (range 16) 881 | -8/Materials | Upgraded with Propulsion slot (x1) 887 | -8/Materials | Identified exit to Factory 888 | -8/Materials | Entered Factory 889 | -7/Factory | Identified exit to Storage 890 | -7/Factory | Reached level 7 894 | -7/Factory | Identified exit to DSF 895 | -7/Factory | Entered DSF 923 | -7/DSF | Core integrity fell below 50% 930 | -7/DSF | Additional patrols routed to DSF 947 | -7/DSF | Discovered new exit (range 14) 955 | -7/DSF | Upgraded with Propulsion slot (x1) 962 | -7/DSF | Identified exit to Garrison 963 | -7/DSF | Entered Garrison 963 | -7/Garrison | Reached level 8 983 | -7/Garrison | Triggered checkpoint 994 | -7/Garrison | Rescued a captive Derelict 1013 | -7/Garrison | Triggered checkpoint 1017 | -7/Garrison | Discovered new exit (range 10) 1020 | -7/Garrison | Identified exit to Factory 1025 | -7/Garrison | Core integrity fell below 20% 1040 | -7/Garrison | Entered Factory 1041 | -6/Factory | Core integrity fell below 50% 1042 | -6/Factory | Reached level 9 1069 | -6/Factory | Spotted B-75 Beast 1078 | -6/Factory | Core integrity fell below 20% 1118 | -6/Factory | Destroyed self via exploding Nuclear Reactor Last Messages --------------- 01077_ Cesium-ion Thruster destroyed. 01078_ Used Protomatter to restore core integrity (+3, depleted) 01079_ K-01 Serf collects debris. 01079_ O-24 Administrator: "IFF HANDSHAKE FAILED. SECURING TERMINAL." 01080_ The unstable cave ceiling collapses. 01082_ Nuclear Reactor explodes. 01084_ O-24 Administrator uses terminal to summon reinforcements. 01084_ ALERT: Hostiles spotted, dispatching reinforcements to Terminal F003. 01084_ O-24 Administrator locks terminal. 01102_ Acquired Unknown Ballistic Gun. 01102_ Identified Coil Gun. 01106_ Slug penetrates Nuclear Reactor. 01117_ K-01 Serf collects debris. 01118_ Nuclear Reactor explodes. 01118_ Cesium-ion Thruster destroyed. 01118_ Destroyed Cesium-ion Thruster. Map ----- +----------------------------------------------------+ | ???????????? #?????? + | | ??????????????"""" """"" #????? # | | ?????????????""""" """"" #???? ?# | | ?????????? ??""" """ #???? ??# | | ?????????? #???????# | | ????????"""" """" """"" #???????# # | | ???????""""" """" """"" #???????# ##+## | | ?????? """ """" """ +???????# ????? | | ????? #???????? ?????? | | ?????? +?????????????????? | | ??????????## ########?????????????????? | | ???????????# #######????????????????+## | | ???????????# !#???????????? | | ???????????# #???????????? | | ???????????# """ """ """ """ #???????????? | | ???????????# """ """ """ """ #???????????? | | ???????????# """ """ """ """ #?????????????##### | | ???????????# #?????????????????? | | ???????????# """ """ ?????????????????? | | ???????????# """ """ ?????????????????? | | ???????????# """ """ ?????????????????? | | ???????????# ?????????????????? | | ???????????# """ [ ?????????????????? | | ???????????# """ [ #?????????????????? | | ???????????# """ #?????????????????? | | ???????????# @ ###???????????????? | | ???????????# """ ???????????? | | ???????????+ """ k ????????? | | ???????????# """ ????????? | | ???????????# ?????????? | | ???????????# ?????????? | | ???????????########## ##############?????????? | | ?????????????????????????????????????????????????? | | ?????????????????????????????????????????????????? | | ?????????????????????????????????????????????????? | | ?????????????????????????????????????????????????? | | ?????????????????????????????????????????????????? | | ?????????????????????????????????????????????????? | | ?????????????????????????????????????????????????? | | ?????????????????????????????????????????????????? | | ?????????????????????????????????????????????????? | | ?????????????????????????????????????????????????? | | ?????????????????????????????????????????????????? | | ?????????????????????????????????????????????????? | | ?????????????????????????????????????????????????? | | ?????????????????????????????????????????????????? | | ?????????????????????????????????????????????????? | | ?????????????????????????????????????????????????? | | ?????????????????????????????????????????????????? | | ?????????????????????????????????????????????????? | +----------------------------------------------------+ Best States ------------- Heat Dissipation 39 Energy Generation 14 Energy Capacity 265 Matter Stores 300 Matter Capacity 300 Sight Range 16 Terrain Scan Density 10 Resistance: KI 15 Evasion (%) 64 Item Schematics ----------------- None Robot Schematics ------------------ None Fabricated ------------ Nothing Repaired ---------- Nothing Alien Tech Used ----------------- None Achievements -------------- None Challenges ------------ None RPGLIKE | -11 -10 -10 -9 -8 -7 -7 -7 -6 --------- Run | Yrd Mat Min Mat Mat Fac DSF Gar Fac Levels Raised 8 | . . . 2 3 1 . 1 1 XP Earned 16302 | 3000 . 1250 3077 3350 1500 1250 850 2025 XP Spent 14875 | . . 2800 2600 4910 . 800 2065 1700 Upgrades 49 | . . 7 4 28 . 1 7 2 Propulsion Slot 2 | . . . . 1 . 1 . . Core Integrity 31 | . . . . 24 . . 7 . Mass Support 1 | . . 1 . . . . . . Melee Accuracy 8 | . . 6 . . . . . 2 KI Resistance % 3 | . . . . 3 . . . . KI Damage % 4 | . . . 4 . . . . . Protomatter Created 424 | . . 108 134 182 . . . . Integrity Restored 1154 | . . 323 402 426 . . . 3 Core 1154 | . . 323 402 426 . . . 3 Protomatter Decayed 40 | . . . . 40 . . . . Game ------ Seed TargetFortressMagmablaster Manual? 0 Play Time 00:14:40 Cumulative 38.4 hours Start 2025.10.21 @ 06:56:56 End 2025.10.21 @ 07:10:22 Sessions 1 Manual Loads 0 Difficulty Rogue Special Mode Winter2019/RPGLIKE Game No. 153 Rogue 153 Adventurer 0 Explorer 0 Win Type - Total 0 Types 0/0/0/0/0/0/0/0/0/0 Lore% 12 Gallery% 32 Achievement% 31 Wizard Run 0 Options --------- Layout 2 ASCII 0 Keyboard 1 Movement Vi Keybinds 0 Fullscreen 1 Font 16/SmallcapsGlow Map View 55x47 Zoom Use 0% Tactical HUD 1 Map Filters NONE Filters NONE Steam 1 RUN: 52ca517a-1bc9-44fe-9da1-d4946a13fa72